[Event "CZE-ch Open 2019"]
[Site "Ostrava"]
[Date "2019.05.05"]
[Round "9.32"]
[White "Pavlicek, Lukas"]
[Black "Bures, Martin"]
[Result "1-0"]
[ECO "B03"]
[WhiteElo "1963"]
[BlackElo "2150"]
[Annotator "NA RC"]
[PlyCount "38"]
[EventDate "2019.04.27"]
[EventType "swiss"]
[EventCountry "CZE"]
[SourceTitle "playchess.com"]
[Source "ChessBase"]
[SourceQuality "1"]
[TimeControl "40/5400+30:1800+30"]

1. e4 {[%emt 0:00:00]} Nf6 {[%emt 0:00:00]} 2. e5 {[%emt 0:00:04]} Nd5 {[%emt 0:00:00]} 3. d4 {[%emt 0:00:04]} d6 {[%emt 0:00:19]} 4. c4 {[%emt 0:00:09]} Nb6 {[%emt 0:00:07]} 5. exd6 {[%emt 0:00:05]} cxd6 {[%emt 0:00:14]} 6. Nc3 {[%emt 0:00:43]} g6 {[%emt 0:00:04]} 7. Be3 {[%emt 0:01:01]} Bg7 {[%emt 0:00:14]} 8. b3 {[%emt 0:01:41]} Nc6 {[%emt 0:01:13]} 9. Nf3 {[%emt 0:02:17]} Bg4 {[%emt 0:03:37]} 10. Be2 {[%emt 0:00:30]} d5 {[%emt 0:02:04]} 11. c5 {[%emt 0:03:19]} Nc8 {[%emt 0:00:02]} 12. Rc1 {[%emt 0:04:30]} O-O {[%emt 0:05:25]} 13. O-O {[%emt 0:02:13]} e6 {[%emt 0:00:17]} 14. b4 {[%emt 0:16:15]} Bxf3 {[%emt 0:04:02]} 15. Bxf3 {[%emt 0:01:59]} Qh4 {[%emt 0:00:42]} 16. Ne2 $11 {[%emt 0:02:27]} N8e7 {[%emt 0:02:57]} 17. b5 {[%emt 0:02:29]} Na5 {[%emt 0:00:28]} 18. Qd2 {[%emt 0:00:44]} h6 {[%emt 0:10:50]} 19. Qxa5 {[%emt 0:00:38]} Nf5 {[%emt 0:01:08]} 1-0